[Event "Polish Youth Ekstraliga 2022"]
[Site "Lublin"]
[Date "2022.06.27"]
[Round "3.14"]
[White "Wilk, Igor"]
[Black "Koziorowicz, Michal"]
[Result "0-1"]
[ECO "A52"]
[WhiteElo "1824"]
[BlackElo "2231"]
[Annotator "RC"]
[PlyCount "134"]
[EventDate "2022.06.24"]
[EventType "team-tourn"]
[EventCountry "POL"]
[SourceTitle "playchess.com"]
[Source "ChessBase"]
[SourceQuality "1"]
[TimeControl "40/5400+30:1800+30"]

1. d4 {[%emt 0:00:04]} Nf6 {[%emt 0:03:15]} 2. c4 {[%emt 0:00:14]} e5 {[%emt 0:01:38]} 3. dxe5 {[%emt 0:00:40]} Ng4 {[%emt 0:00:16]} 4. Bf4 {[%emt 0:00:49]} g5 {[%emt 0:01:06]} 5. Bg3 {[%emt 0:02:03]} Nc6 {[%emt 0:02:19]} 6. Nf3 {[%emt 0:02:46]} Bg7 {[%emt 0:01:09]} 7. Nc3 {[%emt 0:04:55]} Ngxe5 {[%emt 0:01:50]} 8. Nxe5 {[%emt 0:00:22]} Nxe5 {[%emt 0:00:07]} 9. e3 {[%emt 0:00:12]} d6 {[%emt 0:00:53]} 10. Be2 {[%emt 0:02:12]} Be6 {[%emt 0:09:09]} 11. f4 {[%emt 0:06:28]} gxf4 {[%emt 0:13:37]} 12. exf4 {[%emt 0:00:45]} Ng6 {[%emt 0:00:41]} 13. O-O {[%emt 0:01:11]} f5 {[%emt 0:00:05]} 14. Bf3 {[%emt 0:03:47]} c6 {[%emt 0:04:29]} 15. Re1 {[%emt 0:03:07]} Kf7 {[%emt 0:02:31]} 16. Qd3 {[%emt 0:02:00]} Re8 {[%emt 0:22:19]} 17. Rad1 {[%emt 0:02:31]} Qb6+ {[%emt 0:09:04]} 18. Bf2 {[%emt 0:00:19]} Qxb2 {[%emt 0:00:08]} 19. Ne2 {[%emt 0:02:20]} Rad8 {[%emt 0:03:41]} 20. Rb1 {[%emt 0:02:01]} Qxa2 {[%emt 0:00:38]} 21. Rxb7+ {[%emt 0:00:45]} Kg8 {[%emt 0:02:22]} 22. Bd4 {[%emt 0:01:45]} Bf8 {[%emt 0:02:54]} 23. Rc1 {[%emt 0:06:18]} d5 {[%emt 0:03:50]} 24. cxd5 {[%emt 0:23:28]} Bxd5 {[%emt 0:00:38]} 25. Rxa7 {[%emt 0:00:37]} Qb3 {[%emt 0:02:13]} 26. Qxb3 {[%emt 0:04:32]} Bxb3 {[%emt 0:00:11]} 27. Bb6 {[%emt 0:00:24]} Rb8 {[%emt 0:02:43]} 28. Bc7 {[%emt 0:00:50]} Rb4 {[%emt 0:00:13]} 29. Ng3 {[%emt 0:02:03]} Rc4 {[%emt 0:02:12]} 30. Rxc4 {[%emt 0:01:28]} Bxc4 {[%emt 0:00:01]} 31. Bb6 {[%emt 0:00:17]} Nxf4 {[%emt 0:01:03]} 32. Nxf5 {[%emt 0:01:09]} Re5 {[%emt 0:01:20]} 33. Ne3 {[%emt 0:02:20]} Bb5 {[%emt 0:00:37]} 34. Bd4 {[%emt 0:03:10]} Re8 {[%emt 0:00:12]} 35. Ng4 {[%emt 0:00:56]} Re1+ {[%emt 0:01:05]} 36. Kf2 {[%emt 0:00:02]} Nd3+ {[%emt 0:00:14]} 37. Kg3 {[%emt 0:00:08]} Bd6+ {[%emt 0:00:20]} 38. Kh4 {[%emt 0:01:12]} Re7 {[%emt 0:02:30]} 39. Nh6+ {[%emt 0:04:51]} Kf8 {[%emt 0:00:00]} 40. Ra8+ {[%emt 0:00:00]} Re8 {[%emt 0:00:00]} 41. Bg7+ {[%emt 0:00:39]} Kxg7 {[%emt 0:04:29]} 42. Rxe8 {[%emt 0:00:07]} Bxh2 {[%emt 0:00:59]} 43. Ng4 {[%emt 0:02:15]} Bd6 {[%emt 0:00:53]} 44. Re6 {[%emt 0:00:29]} Bf8 {[%emt 0:04:30]} 45. Bxc6 {[%emt 0:08:44]} Nf4 {[%emt 0:01:26]} 46. Rh6 {[%emt 0:01:14]} Be2 {[%emt 0:03:58]} 47. Be4 {[%emt 0:01:53]} Ng6+ {[%emt 0:01:08]} 48. Bxg6 {[%emt 0:00:13]} hxg6 {[%emt 0:00:08]} 49. Rxg6+ {[%emt 0:08:15]} Kxg6 {[%emt 0:00:09]} 50. Nf2 {[%emt 0:00:20]} Be7+ {[%emt 0:01:19]} 51. Kg3 {[%emt 0:00:46]} Bd6+ {[%emt 0:00:22]} 52. Kh4 {[%emt 0:00:09]} Bb4 {[%emt 0:00:13]} 53. Nh3 {[%emt 0:00:43]} Be1+ {[%emt 0:03:49]} 54. g3 {[%emt 0:00:02]} Kf5 {[%emt 0:00:12]} 55. Nf4 {[%emt 0:00:18]} Bf1 {[%emt 0:00:43]} 56. Nh5 {[%emt 0:00:21]} Bf2 {[%emt 0:01:38]} 57. Nf4 {[%emt 0:00:28]} Bb6 {[%emt 0:00:36]} 58. Nd5 {[%emt 0:00:51]} Bd8+ {[%emt 0:00:12]} 59. Kh5 {[%emt 0:00:02]} Be2+ {[%emt 0:00:22]} 60. Kh6 {[%emt 0:00:08]} Bg5+ {[%emt 0:01:38]} 61. Kg7 {[%emt 0:00:02]} Bd2 {[%emt 0:01:30]} 62. Nf4 {[%emt 0:00:21]} Bc4 {[%emt 0:00:25]} 63. Nh5 {[%emt 0:00:59]} Kg5 {[%emt 0:01:00]} 64. Nf4 {[%emt 0:00:31]} Be1 {[%emt 0:00:29]} 65. Ng2 {[%emt 0:01:15]} Bxg3 {[%emt 0:00:19]} 66. Ne3 {[%emt 0:00:05]} Bb3 {[%emt 0:00:06]} 67. Ng2 {[%emt 0:00:34]} Bf2 {[%emt 0:00:10]} 0-1

[Event "Polish Youth Ekstraliga 2022"]
[Site "Lublin"]
[Date "2022.06.27"]
[Round "3.15"]
[White "Raczek, Krzysztof"]
[Black "Bartoszczuk, Adam"]
[Result "1-0"]
[ECO "A05"]
[WhiteElo "2114"]
[BlackElo "1662"]
[Annotator "RC"]
[PlyCount "97"]
[EventDate "2022.06.24"]
[EventType "team-tourn"]
[EventCountry "POL"]
[SourceTitle "playchess.com"]
[Source "ChessBase"]
[SourceQuality "1"]
[TimeControl "40/5400+30:1800+30"]

1. Nf3 {[%emt 0:00:01]} Nf6 {[%emt 0:00:07]} 2. c4 {[%emt 0:00:08]} g6 {[%emt 0:00:28]} 3. g3 {[%emt 0:00:06]} Bg7 {[%emt 0:00:15]} 4. Bg2 {[%emt 0:00:08]} O-O {[%emt 0:00:26]} 5. O-O {[%emt 0:00:08]} c6 {[%emt 0:01:01]} 6. d4 {[%emt 0:03:43]} d5 {[%emt 0:00:32]} 7. Nbd2 {[%emt 0:04:48]} Bf5 {[%emt 0:09:40]} 8. b3 {[%emt 0:05:16]} Nbd7 {[%emt 0:03:12]} 9. Bb2 {[%emt 0:00:15]} a5 10. Rc1 {[%emt 0:14:05]} a4 {[%emt 0:14:15]} 11. b4 {[%emt 0:00:15]} a3 {[%emt 0:01:54]} 12. Ba1 {[%emt 0:00:15]} Nb6 {[%emt 0:05:53]} 13. c5 {[%emt 0:02:10]} Na4 {[%emt 0:15:18]} 14. Nh4 {[%emt 0:04:54]} Nb2 {[%emt 0:10:49]} 15. Qb3 {[%emt 0:01:29]} Nc4 {[%emt 0:00:15]} 16. Nxc4 {[%emt 0:01:16]} dxc4 {[%emt 0:00:02]} 17. Qxc4 {[%emt 0:00:59]} Be6 {[%emt 0:00:07]} 18. Qc2 {[%emt 0:00:28]} Nd5 {[%emt 0:00:50]} 19. Rb1 {[%emt 0:02:44]} Qb8 {[%emt 0:12:44]} 20. b5 {[%emt 0:04:46]} Qa7 {[%emt 0:02:35]} 21. e4 {[%emt 0:03:48]} Nf6 {[%emt 0:01:12]} 22. bxc6 {[%emt 0:05:10]} bxc6 {[%emt 0:00:37]} 23. Rfc1 {[%emt 0:08:27]} Rfb8 {[%emt 0:02:57]} 24. Rxb8+ {[%emt 0:00:25]} Rxb8 {[%emt 0:00:08]} 25. Nf3 {[%emt 0:00:53]} Qb7 {[%emt 0:03:01]} 26. h3 {[%emt 0:04:41]} Bh6 {[%emt 0:01:31]} 27. Rd1 {[%emt 0:00:33]} Qb4 {[%emt 0:02:38]} 28. Ne5 {[%emt 0:00:19]} Qb7 {[%emt 0:01:16]} 29. Nxc6 {[%emt 0:01:54]} Qxc6 {[%emt 0:03:02]} 30. d5 {[%emt 0:00:01]} Qa6 {[%emt 0:01:01]} 31. dxe6 {[%emt 0:00:25]} Qxe6 {[%emt 0:00:19]} 32. c6 {[%emt 0:00:08]} Rc8 {[%emt 0:01:25]} 33. e5 {[%emt 0:00:46]} Ne8 {[%emt 0:00:42]} 34. Rd3 {[%emt 0:04:24]} Bg7 {[%emt 0:01:15]} 35. Qb3 {[%emt 0:00:49]} Qf5 {[%emt 0:04:04]} 36. Rf3 {[%emt 0:00:26]} Qe6 {[%emt 0:01:18]} 37. Qxe6 {[%emt 0:00:06]} fxe6 {[%emt 0:00:01]} 38. Rxa3 {[%emt 0:00:13]} Nc7 {[%emt 0:00:08]} 39. f4 {[%emt 0:02:35]} Nd5 {[%emt 0:00:23]} 40. Bxd5 {[%emt 0:00:00]} exd5 {[%emt 0:00:00]} 41. Rc3 {[%emt 0:00:35]} d4 {[%emt 0:00:40]} 42. Rc4 {[%emt 0:00:07]} d3 {[%emt 0:00:48]} 43. Bc3 {[%emt 0:00:06]} e6 {[%emt 0:00:22]} 44. Kf2 {[%emt 0:00:15]} Kf7 {[%emt 0:01:21]} 45. Ke3 {[%emt 0:00:08]} Bf8 {[%emt 0:00:06]} 46. a4 {[%emt 0:00:05]} Ke8 {[%emt 0:00:19]} 47. Kxd3 {[%emt 0:00:12]} Kd8 {[%emt 0:01:35]} 48. Ba5+ {[%emt 0:00:10]} Ke8 {[%emt 0:00:03]} 49. Ke4 {[%emt 0:00:13]} 1-0

[Event "Polish Youth Ekstraliga 2022"]
[Site "Lublin"]
[Date "2022.06.27"]
[Round "3.16"]
[White "Kaszuba, Michal"]
[Black "Grzebieniowski, Michal"]
[Result "1/2-1/2"]
[ECO "B13"]
[WhiteElo "1307"]
[BlackElo "1635"]
[Annotator "NA RC"]
[PlyCount "66"]
[EventDate "2022.06.24"]
[EventType "team-tourn"]
[EventCountry "POL"]
[SourceTitle "playchess.com"]
[Source "ChessBase"]
[SourceQuality "1"]
[TimeControl "40/5400+30:1800+30"]

1. e4 {[%emt 0:00:03]} c6 {[%emt 0:00:08]} 2. d4 {[%emt 0:00:07]} d5 {[%emt 0:00:04]} 3. exd5 {[%emt 0:00:06]} cxd5 {[%emt 0:00:05]} 4. Bd3 {[%emt 0:00:12]} g6 {[%emt 0:00:06]} 5. h3 {[%emt 0:00:34]} Bg7 {[%emt 0:00:09]} 6. c3 {[%emt 0:00:27]} Bf5 {[%emt 0:00:07]} 7. Bxf5 {[%emt 0:01:08]} gxf5 {[%emt 0:00:02]} 8. Nf3 {[%emt 0:03:41]} e6 {[%emt 0:00:09]} 9. O-O {[%emt 0:08:22]} Nf6 {[%emt 0:03:26]} 10. Ne5 {[%emt 0:15:56]} O-O {[%emt 0:00:18]} 11. Bg5 {[%emt 0:00:51]} Qc7 {[%emt 0:01:20]} 12. Bxf6 {[%emt 0:18:09]} Bxf6 {[%emt 0:00:10]} 13. f4 {[%emt 0:00:16]} Bg7 {[%emt 0:01:05]} 14. Qe2 {[%emt 0:06:38]} Nd7 {[%emt 0:00:12]} 15. Nxd7 {[%emt 0:02:06]} Qxd7 {[%emt 0:00:03]} 16. Nd2 {[%emt 0:01:28]} b5 {[%emt 0:02:26]} 17. Nb3 {[%emt 0:01:14]} Kh8 {[%emt 0:01:03]} 18. Nc5 {[%emt 0:02:18]} Qc6 {[%emt 0:00:13]} 19. b4 {[%emt 0:06:36]} Bf6 {[%emt 0:02:08]} 20. a4 {[%emt 0:05:33]} a6 {[%emt 0:00:08]} 21. axb5 {[%emt 0:05:18]} axb5 {[%emt 0:00:18]} 22. Qb2 {[%emt 0:02:04]} Be7 {[%emt 0:01:13]} 23. g3 {[%emt 0:02:51]} Rg8 {[%emt 0:00:36]} 24. Kh2 {[%emt 0:01:52]} Bd6 {[%emt 0:01:01]} 25. Rxa8 {[%emt 0:00:35]} Rxa8 {[%emt 0:02:17]} 26. Ra1 {[%emt 0:01:13]} Rg8 {[%emt 0:01:20]} 27. Qe2 {[%emt 0:01:02]} Qc7 {[%emt 0:01:30]} 28. Qe3 {[%emt 0:03:43]} Qb8 {[%emt 0:05:52]} 29. Ra5 {[%emt 0:02:48]} Rg6 {[%emt 0:04:13]} 30. Nd7 {[%emt 0:02:32]} Qb7 {[%emt 0:00:13]} 31. Nc5 {[%emt 0:00:29]} Qb8 {[%emt 0:00:23]} 32. Nd7 {[%emt 0:00:45]} Qb7 {[%emt 0:00:09]} 33. Nc5 {[%emt 0:00:33]} Qb8 {[%emt 0:00:18]} 1/2-1/2

[Event "Polish Youth Ekstraliga 2022"]
[Site "Lublin"]
[Date "2022.06.27"]
[Round "3.17"]
[White "Siekanska, Maria"]
[Black "Goraj, Barbara"]
[Result "0-1"]
[ECO "E95"]
[WhiteElo "1964"]
[BlackElo "2035"]
[Annotator "NA RC"]
[PlyCount "94"]
[EventDate "2022.06.24"]
[EventType "team-tourn"]
[EventCountry "POL"]
[SourceTitle "playchess.com"]
[Source "ChessBase"]
[SourceQuality "1"]
[TimeControl "40/5400+30:1800+30"]

1. d4 {[%emt 0:00:02]} Nf6 {[%emt 0:00:10]} 2. c4 {[%emt 0:00:04]} g6 {[%emt 0:00:10]} 3. Nc3 {[%emt 0:00:07]} Bg7 {[%emt 0:00:06]} 4. e4 {[%emt 0:00:07]} d6 {[%emt 0:00:09]} 5. Nf3 {[%emt 0:00:05]} O-O {[%emt 0:00:09]} 6. Be2 {[%emt 0:00:04]} Nbd7 {[%emt 0:00:23]} 7. O-O {[%emt 0:00:12]} e5 {[%emt 0:00:09]} 8. Re1 {[%emt 0:00:16]} Re8 {[%emt 0:00:35]} 9. d5 {[%emt 0:00:18]} Nc5 {[%emt 0:00:18]} 10. Bf1 {[%emt 0:00:31]} a5 {[%emt 0:00:39]} 11. Bg5 {[%emt 0:01:27]} h6 {[%emt 0:01:43]} 12. Bd2 {[%emt 0:00:31]} Nh5 {[%emt 0:11:10]} 13. g3 {[%emt 0:03:05]} Bg4 {[%emt 0:07:37]} 14. h3 {[%emt 0:02:58]} Bd7 {[%emt 0:00:48]} 15. b3 {[%emt 0:03:29]} Kh7 {[%emt 0:08:50]} 16. Kh2 {[%emt 0:10:06]} b6 {[%emt 0:07:11]} 17. Bg2 {[%emt 0:15:22]} Bf6 {[%emt 0:14:42]} (17... Rg8 $11) 18. Be3 {[%emt 0:03:29]} Be7 {[%emt 0:02:27]} 19. a3 {[%emt 0:02:52]} Ng7 {[%emt 0:10:19]} 20. b4 {[%emt 0:04:22]} axb4 {[%emt 0:06:01]} 21. axb4 {[%emt 0:01:18]} Rxa1 {[%emt 0:00:47]} 22. Qxa1 {[%emt 0:00:12]} Nd3 {[%emt 0:02:15]} 23. Rb1 {[%emt 0:00:55]} f5 {[%emt 0:03:13]} 24. Bf1 {[%emt 0:02:21]} f4 {[%emt 0:00:09]} 25. Bxb6 {[%emt 0:07:50]} fxg3+ {[%emt 0:01:27]} 26. fxg3 {[%emt 0:00:58]} Rf8 {[%emt 0:02:45]} 27. Bxd3 {[%emt 0:01:21]} cxb6 {[%emt 0:04:24]} (27... Rxf3 $11 28. Be2 Qf8) 28. Rf1 {[%emt 0:00:46]} Nh5 {[%emt 0:09:18]} 29. Be2 {[%emt 0:04:54]} Kg7 {[%emt 0:04:26]} 30. Qc1 {[%emt 0:07:40]} Qc8 {[%emt 0:01:14]} 31. Ng1 {[%emt 0:01:14]} Bg5 {[%emt 0:00:37]} 32. Rxf8 {[%emt 0:02:56]} Qxf8 {[%emt 0:01:25]} 33. Qf1 {[%emt 0:00:43]} Qc8 {[%emt 0:00:50]} 34. Qf3 {[%emt 0:03:32]} Nf6 {[%emt 0:00:27]} 35. Qd3 {[%emt 0:03:51]} h5 {[%emt 0:00:25]} 36. Bf3 {[%emt 0:05:52]} Qa6 {[%emt 0:00:28]} 37. Nb5 {[%emt 0:01:47]} Ne8 {[%emt 0:00:41]} 38. Be2 {[%emt 0:02:06]} Qa4 {[%emt 0:00:28]} 39. Qc3 {[%emt 0:00:40]} h4 {[%emt 0:00:32]} 40. gxh4 {[%emt 0:00:00]} Bf4+ {[%emt 0:00:00]} 41. Kh1 {[%emt 0:06:50]} Qa2 {[%emt 0:06:12]} 42. Qf3 {[%emt 0:15:00]} Qb2 {[%emt 0:05:10]} 43. Qg2 {[%emt 0:00:24]} Qxb4 {[%emt 0:03:46]} 44. h5 {[%emt 0:03:18]} (44. Bh5 $11) 44... g5 {[%emt 0:00:43]} 45. h4 $2 {[%emt 0:00:30]} (45. Bg4 $11 Bxb5 46. cxb5) 45... Qe1 {[%emt 0:00:56]} 46. Bg4 {[%emt 0:02:43]} Qxh4+ {[%emt 0:01:49]} 47. Qh3 $19 {[%emt 0:00:05]} Bxg4 {[%emt 0:00:16]} 0-1

[Event "Polish Youth Ekstraliga 2022"]
[Site "Lublin"]
[Date "2022.06.27"]
[Round "3.18"]
[White "Jaros, Emilia"]
[Black "Ziobrowska, Maja"]
[Result "0-1"]
[ECO "C47"]
[WhiteElo "1366"]
[BlackElo "1609"]
[Annotator "NA RC"]
[PlyCount "90"]
[EventDate "2022.06.24"]
[EventType "team-tourn"]
[EventCountry "POL"]
[SourceTitle "playchess.com"]
[Source "ChessBase"]
[SourceQuality "1"]
[TimeControl "40/5400+30:1800+30"]

1. e4 {[%emt 0:00:05]} e5 {[%emt 0:00:05]} 2. Nf3 {[%emt 0:00:16]} Nc6 {[%emt 0:00:06]} 3. Nc3 {[%emt 0:00:17]} Nf6 {[%emt 0:00:36]} 4. a3 {[%emt 0:00:37]} a6 {[%emt 0:01:28]} 5. d4 {[%emt 0:05:07]} exd4 {[%emt 0:02:01]} 6. Nxd4 {[%emt 0:02:04]} d5 {[%emt 0:06:16]} 7. Bg5 {[%emt 0:09:36]} Be7 {[%emt 0:03:27]} 8. exd5 {[%emt 0:04:02]} Nxd5 {[%emt 0:00:57]} 9. Nxc6 {[%emt 0:01:47]} bxc6 {[%emt 0:00:18]} 10. Bxe7 {[%emt 0:03:56]} Qxe7+ {[%emt 0:00:39]} 11. Qe2 {[%emt 0:01:17]} Nxc3 {[%emt 0:06:14]} 12. Qxe7+ {[%emt 0:02:07]} Kxe7 {[%emt 0:00:05]} 13. bxc3 {[%emt 0:00:17]} Be6 {[%emt 0:02:38]} 14. Bd3 {[%emt 0:01:08]} a5 {[%emt 0:01:17]} 15. f4 {[%emt 0:03:21]} Kf6 {[%emt 0:05:49]} 16. Be4 {[%emt 0:02:11]} Rhd8 {[%emt 0:09:36]} 17. Rd1 {[%emt 0:04:46]} Rd6 {[%emt 0:15:45]} 18. h3 {[%emt 0:04:01]} Rb8 {[%emt 0:03:51]} 19. Ke2 {[%emt 0:04:43]} Bf5 {[%emt 0:15:35]} 20. Bxf5 {[%emt 0:06:18]} Kxf5 {[%emt 0:00:18]} 21. g4+ {[%emt 0:03:19]} Kxf4 {[%emt 0:03:56]} 22. Rhf1+ {[%emt 0:02:01]} Kg3 {[%emt 0:01:44]} 23. Rf3+ {[%emt 0:02:27]} Kg2 {[%emt 0:01:24]} 24. Rxd6 {[%emt 0:03:39]} Re8+ {[%emt 0:00:30]} 25. Kd3 {[%emt 0:01:26]} Kxf3 {[%emt 0:11:03]} 26. Rxc6 {[%emt 0:02:22]} Re7 {[%emt 0:02:50]} 27. Rc5 {[%emt 0:02:28]} Rd7+ {[%emt 0:02:17]} 28. Kc4 {[%emt 0:00:29]} g6 {[%emt 0:02:34]} 29. Rxa5 {[%emt 0:01:26]} Kg3 {[%emt 0:00:05]} 30. Rd5 {[%emt 0:00:17]} Rxd5 {[%emt 0:01:09]} 31. Kxd5 {[%emt 0:00:32]} f5 {[%emt 0:00:04]} 32. gxf5 {[%emt 0:02:04]} gxf5 {[%emt 0:00:04]} 33. a4 {[%emt 0:00:21]} f4 {[%emt 0:00:03]} 34. a5 {[%emt 0:00:10]} f3 {[%emt 0:00:03]} 35. Kd4 {[%emt 0:00:10]} f2 {[%emt 0:00:08]} 36. a6 {[%emt 0:00:08]} f1=Q {[%emt 0:00:05]} 37. a7 {[%emt 0:00:09]} Qg1+ {[%emt 0:00:03]} 38. Ke4 {[%emt 0:00:15]} Qxa7 {[%emt 0:00:07]} 39. c4 {[%emt 0:00:07]} Qc5 {[%emt 0:00:20]} 40. Kd3 {[%emt 0:00:00]} Kf3 {[%emt 0:00:00]} 41. c3 {[%emt 0:00:25]} Qf5+ {[%emt 0:00:57]} 42. Kd2 {[%emt 0:00:11]} Qxh3 {[%emt 0:00:45]} 43. c5 {[%emt 0:00:12]} Qg2+ {[%emt 0:00:17]} 44. Kd3 {[%emt 0:00:12]} Qe2+ {[%emt 0:00:13]} 45. Kd4 {[%emt 0:00:09]} Qe4# {[%emt 0:00:04]} 0-1

[Event "Polish Youth Ekstraliga 2022"]
[Site "Lublin"]
[Date "2022.06.27"]
[Round "3.19"]
[White "Karolczuk, Iwo"]
[Black "Niedbala, Bartlomiej"]
[Result "0-1"]
[ECO "B23"]
[WhiteElo "2319"]
[BlackElo "2384"]
[Annotator "TA"]
[PlyCount "76"]
[EventDate "2022.06.24"]
[EventType "team-tourn"]
[EventCountry "POL"]
[SourceTitle "playchess.com"]
[Source "ChessBase"]
[SourceQuality "1"]
[TimeControl "40/5400+30:1800+30"]

{[%evp 9,76,24,22,26,22,26,34,28,35,42,35,35,20,30,72,41,44,74,80,83,53,0,37,0,0,-43,117,0,49,53,62,64,27,27,27,20,28,22,20,12,99,113,141,0,9,0,32,0,9,0,0,-77,-5,-362,-354,-339,-254,-265,-263,-29985,-29967,-29983,-841,-29989,-29990,-29993,-29994,-29994,-1128]} 1. e4 {[%emt 0:00:03]} c5 {[%emt 0:01:40]} 2. Nc3 {[%emt 0:01:13]} g6 {[%emt 0:01:07]} 3. d4 {[%emt 0:07:33]} cxd4 {[%emt 0:00:07]} 4. Qxd4 {[%emt 0:00:02]} Nf6 {[%emt 0:00:07]} 5. Be3 {[%emt 0:01:06]} Nc6 {[%emt 0:02:57]} 6. Qd2 {[%emt 0:00:06] B23: Closed Sicilian: Lines without g3.} Bg7 {[%emt 0:08:41]} 7. f3 {[%emt 0:00:08] Against Ng4} d6 {[%emt 0:01:42]} 8. Nge2 {[%emt 0:03:05] White is slightly better.} O-O {[%emt 0:08:23][%cal Ob7b5]} 9. O-O-O {[%emt 0:00:36]} Qa5 {[%emt 0:04:25]} 10. Kb1 {[%emt 0:14:50]} b5 {[%emt 0:03:32][%cal Bb7b5,Bb5b4][%mdl 32] [#]} 11. Bh6 $146 {[%emt 0:10:35]} ({Predecessor:} 11. Nc1 b4 12. Nd5 Nxd5 13. exd5 Ne5 14. Bh6 Bxh6 15. Qxh6 Bf5 16. g4 Bd7 17. h4 {1-0 (31) Kadric,D (2564)-Perez Gormaz,M (2400) Belgrade 2021}) 11... b4 {[%emt 0:09:58]} 12. Nd5 {[%emt 0:00:25]} Nxd5 {[%emt 0:02:15]} 13. Bxg7 {[%emt 0:02:45]} Kxg7 {[%emt 0:00:41]} 14. exd5 {[%emt 0:00:19]} Ne5 {[%emt 0:09:03][%cal Bc6e5,Be5d7,Bd7f6][%mdl 32]} 15. f4 {[%emt 0:05:32]} (15. h4 $14) 15... Nd7 {[%emt 0:00:37]} 16. h4 {[%emt 0:14:17][%cal Bh2h4,Bh4h5][%mdl 32]} Nf6 $1 {[%emt 0:03:35]} 17. h5 {[%emt 0:06:38]} Qc5 $2 {[%emt 0:09:17]} (17... gxh5 18. Ng3 $16) (17... Bg4 $15 {stays ahead.}) 18. Ng3 {[%emt 0:07:14]} (18. hxg6 $16 fxg6 19. Nd4) 18... Bf5 {[%emt 0:03:54]} (18... Bg4 $11 19. Be2 Qf2 20. Bxg4 Nxg4) 19. Bd3 $36 {[%emt 0:01:36][%mdl 2048] White has some pressure.} Bxd3 {[%emt 0:03:18]} 20. Qxd3 {[%emt 0:00:04]} Rac8 {[%emt 0:01:56]} 21. hxg6 {[%emt 0:01:20]} hxg6 {[%emt 0:00:35]} 22. f5 {[%emt 0:04:59]} Qc4 $1 {[%emt 0:02:41]} 23. Qd2 {[%emt 0:01:04] White wants to mate with Qh6+.} Rh8 {[%emt 0:00:30] Against Qh6+. Chess con chili.} 24. fxg6 {[%emt 0:01:49] Nf5+ would kill now.} fxg6 {[%emt 0:00:35]} (24... Qg4 $1 $11 {remains equal.} 25. Qe3 Qxg6) 25. Rhe1 $1 $16 {[%emt 0:00:07]} Rc7 {[%emt 0:00:44]} 26. Re2 {[%emt 0:03:38]} ({Only move:} 26. Ne2 $1 $16) 26... Qg4 {[%emt 0:02:21]} 27. Re3 {[%emt 0:00:35]} Rhc8 {[%emt 0:01:35]} 28. Rde1 {[%emt 0:01:05]} Kf7 {[%emt 0:01:38]} 29. Ne4 {Rf3 is the strong threat.} Rxc2 {[%emt 0:06:36]} 30. Qd4 {[%emt 0:06:57]} (30. Nxf6 $11 exf6 31. Re7+ Kg8 32. Qh6 Rxb2+ 33. Kxb2 Qd4+ 34. Kb1 Qd3+ 35. Ka1 Qc3+ 36. Kb1 Qd3+ 37. Ka1 Qc3+ 38. Kb1 Qd3+) 30... Qf4 {[%emt 0:06:40] Black is more active.} (30... Kg7 $1 $17 {White must now prevent ...R8c7.} 31. Nc5 Qxd4 32. Ne6+ Kg8 33. Nxd4 Rd2) 31. Nxd6+ $2 {[%emt 0:04:17][%mdl 8192] Loses the game.} Qxd6 $19 {[%emt 0:00:08]} 32. Rxe7+ {[%emt 0:00:07]} Kg8 {[%emt 0:02:28][%cal Od6e7] ( -> ...Qxe7!)} 33. Rxa7 {[%emt 0:02:17]} Qxd5 {[%emt 0:00:41]} ({Don't go for} 33... Rxg2 $2 34. Qe3 $19) 34. Qe3 {[%emt 0:00:34] [#] Inhibits Rc1+.} (34. Qxf6 {is a self mate.} Rc1+ $3 {[%mdl 512]} 35. Rxc1 Qe4+) (34. Qxd5+ $19 Nxd5 35. g3) 34... Ne4 $1 {[%emt 0:00:33][%mdl 512]} 35. Ka1 {[%emt 0:00:22] [#]} (35. Rd7 Nd2+) 35... Qc4 $1 {[%emt 0:01:07]} 36. Rb1 {[%emt 0:00:39]} (36. Qb3 Nd2) 36... Rc1 {[%emt 0:00:27] Black mates.} 37. Qb3 {[%emt 0:00:04]} Rxb1+ {[%emt 0:00:13]} 38. Kxb1 {[%emt 0:00:01]} Nd2+ {[%emt 0:00:06] Weighted Error Value: White=0.75/Black=0.38} 0-1